Cogmind - Beta 11.1 @@@ ROGUE MODE // 2022.05.09 @ 10:25:37 Player: Jamuson Result: Destroyed by G-47 Trooper with Particle Gun Performance ------------- Evolutions (0) 0 Regions Visited (2) 400 Robots Destroyed (16) 80 Value Destroyed (480) 480 Prototype IDs (0) 0 Alien Tech Used (0) 0 Bonus (0) 0 TOTAL SCORE: 960 Bonus ------- None Cogmind --------- Core Integrity 0/250 Matter 290/300 Energy 137/150 System Corruption 0% Temperature Cool (83) Movement Treading (240) Ox1 Location -10/Mines Parts ------- > --- POWER (1) -------- Light Angular Momentum Engine > --- PROPULSION (2) --- Light Treads > --- UTILITY (2) ------ Improved Heat Sink Large Storage Unit > --- WEAPON (2) ------- Particle Gun Beamcaster > --- INVENTORY (15) --- Ion Engine Light Ion Engine Seismic Detector Medium Armor Plating Medium Armor Plating Medium Armor Plating Medium Armor Plating Particle Gun Particle Gun Particle Gun Light Assault Rifle Light Assault Rifle Peak State ------------ > --- POWER ------------ Light Angular Momentum Engine > --- PROPULSION ------- Light Treads Light Treads > --- UTILITY ---------- Improved Heat Sink Large Storage Unit > --- WEAPON ----------- Beamcaster Light Assault Rifle > --- INVENTORY -------- Ion Engine Light Ion Engine Seismic Detector Medium Armor Plating Medium Armor Plating Medium Armor Plating Medium Armor Plating Particle Gun Particle Gun Particle Gun Particle Gun Light Assault Rifle Light Assault Rifle [Rating: 19] Favorites ----------- Power Light Ion Engine Engine Light Ion Engine Propulsion Light Treads Treads Light Treads Wheel Wheel Utility Seismic Detector Device Seismic Detector Storage Large Storage Unit Weapon Light Assault Rifle Energy Gun Beamcaster Ballistic Gun Light Assault Rifle Build | -11 -10 -10 ------- Run | Scr Mat Min Slots Evolved . | . . . Power . | . . . Propulsion . | . . . Utility . | . . . Weapon . | . . . Parts Attached 22 | 7 10 5 Power 4 | 2 1 1 Engine 4 | 2 1 1 Core . | . . . Reactor . | . . . Propulsion 5 | 2 3 . Treads 3 | . 3 . Leg . | . . . Wheel 2 | 2 . . Hover . | . . . Flight . | . . . Utility 4 | 1 2 1 Device 2 | . 1 1 Storage 2 | 1 1 . Processor . | . . . Hackware . | . . . Protection . | . . . Artifact . | . . . Weapon 9 | 2 4 3 Energy Gun 5 | 1 1 3 Energy Cannon . | . . . Ballistic Gun 4 | 1 3 . Ballistic Cannon . | . . . Launcher . | . . . Special Weapon . | . . . Impact Weapon . | . . . Slashing Weapon . | . . . Piercing Weapon . | . . . Special Melee Weapon . | . . . Unidentified Prototypes . | . . . Parts Lost 7 | . 5 2 Power 1 | . 1 . Propulsion 3 | . 2 1 Utility . | . . . Weapon 3 | . 2 1 Highest Loss Streak 5 | . 5 1 To Critical Strikes . | . . . Average Slot Usage (%) 96 | . 94 98 Engine 13 | . 13 14 Treads 21 | . 17 27 Wheel 5 | . 8 . Device 12 | . 12 14 Storage 14 | . 14 14 Energy Gun 8 | . 7 11 Ballistic Gun 18 | . 20 15 Naked Turns . | . . . Heaviest Build 38 | 14 26 38 Greatest Support 40 | 26 40 40 Greatest Overweight (x) 1 | 1 1 1 Average Overweight (x) . | . . . Largest Inventory Capacity 15 | 8 15 15 Average Capacity 12 | 7 11 15 Most Carried 14 | 4 11 14 Average Carried 7 | 1 5 11 Final Capacity 15 | 8 15 15 Final Carried 12 | 4 11 12 Class Distribution -------------------- 100% | Mutant Dominant Class ---------------- Mutant | -10/Materials Mutant | -10/Mines Resources | -11 -10 -10 ----------- Run | Scr Mat Min Matter Collected 574 | 224 204 146 Remotely . | . . . Salvage Created 652 | . 325 327 Parts 28 | . 16 12 Haulers Intercepted 1 | . 1 . Recyclers Shooed 1 | . 1 . Parts Field Recycled . | . . . Retrieved Matter . | . . . Parts Self-Destructed . | . . . Prevented . | . . . Kills | -11 -10 -10 ------- Run | Scr Mat Min Combat Hostiles Destroyed 12 | . 5 7 Guns 11 | . 4 7 AOE 1 | . 1 . Classes Destroyed 5 | . 3 2 Builder 1 | . . 1 Tunneler 1 | . . 1 Hauler 1 | . 1 . Recycler 1 | . 1 . Grunt 12 | . 5 7 Best Kill Streak 3 | . 2 3 Combat Bots Only 2 | . 2 2 Max Kills in Single Turn 2 | . 1 2 Gunslinging . | . . . Exploded 1 | . 1 . Melee . | . . . Uniques/NPCs Destroyed . | . . . Combat | -11 -10 -10 -------- Run | Scr Mat Min Damage Taken 1175 | . 588 587 Core 263 | . 152 111 Absorbed by Shields . | . . . Core Remaining (%) 100 | 100 . . Volleys Fired 91 | . 49 42 Largest 2 | . 2 2 Hottest 140 | . 60 140 Shots Fired 168 | . 96 72 Gun 168 | . 96 72 Cannon . | . . . Launcher . | . . . Special . | . . . Kinetic 101 | . 71 30 Thermal 58 | . 16 42 Explosive . | . . . Electromagnetic 9 | . 9 . Robot Hit Streak 8 | . 5 8 Robot Miss Streak 3 | . 3 3 Penetration Max . | . . . Secondary Targets 3 | . 1 2 Max Gunslinging Chain 1 | . 1 1 Shots Hit Robots 105 | . 59 46 Core Hits 35 | . 18 17 Critical Kills . | . . . Critical Parts Destroyed 1 | . . 1 Critical Strikes 5 | . 1 4 Burn 3 | . . 3 Destroy 1 | . . 1 Corrupt 1 | . 1 . Melee Attacks . | . . . Impact . | . . . Slashing . | . . . Piercing . | . . . Sneak Attacks . | . . . Combat Hostiles . | . . . Follow-up Attacks . | . . . Damage Inflicted 1477 | . 673 804 Guns 1410 | . 606 804 Cannons . | . . . Explosions 65 | . 65 . Melee . | . . . Ramming 2 | . 2 . Kinetic 661 | . 488 173 Thermal 786 | . 155 631 Explosive . | . . . Electromagnetic 28 | . 28 . Impact . | . . . Slashing . | . . . Piercing . | . . . Highest Corruption . | . . . Average Corruption . | . . . Corruption Purged . | . . . Corruption Blocked . | . . . Overload Shots . | . . . Overflow Damage . | . . . Projectiles . | . . . Explosions . | . . . Melee . | . . . Knockbacks . | . . . Impact . | . . . Kinetic . | . . . Secondary . | . . . Self-Inflicted Damage . | . . . Shots . | . . . Rammed 1 | . 1 . Targets Rammed 1 | . 1 . Kicked . | . . . Crushed . | . . . Highest Temperature 543 | . 119 543 Average Temperature 128 | . 43 196 Received Heat Transfer 705 | . 342 363 Effects 8 | . . 8 Shutdowns 1 | . . 1 Energy Bleed 2 | . . 2 Interference 2 | . . 2 Matter Decay 2 | . . 2 Short Circuit 1 | . . 1 Siege Activations . | . . . Robots Corrupted . | . . . Combat Hostiles . | . . . Parts Fried . | . . . Impact Corruptions . | . . . Robots Melted . | . . . Combat Hostiles . | . . . Parts Melted 6 | . . 6 Heat Transferred 1669 | . 300 1369 Parts Sabotaged . | . . . Parts Stolen . | . . . Parts Stripped . | . . . Power Chain Reactions 1 | . 1 . Missiles Intercepted . | . . . Alert | -11 -10 -10 ------- Run | Scr Mat Min Peak Influence 160 | . 117 160 Initial 13 | . . 13 Average 62 | . 65 64 Maximum Alert Level . | . . . Low Security (%) 100 | 100 100 100 Level 1 . | . . . Level 2 . | . . . Level 3 . | . . . Level 4 . | . . . Level 5 . | . . . High Security . | . . . Max Security . | . . . Squads Dispatched 2 | . 2 . Investigation . | . . . Extermination . | . . . Reinforcement 2 | . 2 . Assault . | . . . Garrison . | . . . Intercept . | . . . Searches Triggered . | . . . Construction Impeded . | . . . Haulers Reinforced . | . . . Active Scanning Responses . | . . . Cargo Convoy Interrupts . | . . . Stealth | -11 -10 -10 --------- Run | Scr Mat Min Distress Signals 2 | . 2 . Communications Jammed . | . . . Distress Signals . | . . . Times Spotted 19 | . 11 8 Peak Tracking Total 5 | . 5 3 Tactical Retreats . | . . . Traps | -11 -10 -10 ------- Run | Scr Mat Min Traps Triggered . | . . . Indirectly . | . . . Trap Hack Attempts . | . . . Triggered . | . . . Disarmed . | . . . Reprogrammed . | . . . Reused . | . . . Traps Extracted . | . . . Installed . | . . . Triggered . | . . . Machines | -11 -10 -10 ---------- Run | Scr Mat Min Machines Disabled . | . . . Max in Single Turn . | . . . Machines Sabotaged . | . . . Garrisons Compromised . | . . . Overloaded Fab Kills . | . . . Hacking | -11 -10 -10 --------- Run | Scr Mat Min Machines Accessed 2 | . 2 . Terminals 2 | . 2 . Fabricators . | . . . Repair Stations . | . . . Recycling Units . | . . . Scanalyzers . | . . . Garrison Access . | . . . Total Hacks 7 | . 7 . Successful 4 | . 4 . Failed 3 | . 3 . Catastrophic 1 | . 1 . Database Lockouts . | . . . Manual 3 | . 3 . Terminals 7 | . 7 . Fabricators . | . . . Repair Stations . | . . . Recycling Units . | . . . Scanalyzers . | . . . Garrison Access . | . . . Terminal Hacks 2 | . 2 . Branch Access Points 1 | . 1 . Locate Traps 1 | . 1 . Fabricator Hacks . | . . . Repair Station Hacks . | . . . Recycling Unit Hacks . | . . . Scanalyzer . | . . . Garrison Access Hacks . | . . . Unauthorized Hacks 2 | . 2 . Terminals 2 | . 2 . Botnet 2 | . 2 . Fabricators . | . . . Repair Stations . | . . . Recycling Units . | . . . Scanalyzers . | . . . Garrison Access . | . . . Data Cores Recovered . | . . . Used . | . . . Hacking Detections 2 | . 2 . Full Trace Events . | . . . Feedback Events . | . . . Feedback Blocked . | . . . Robot Schematics Acquired . | . . . Robots Built . | . . . Authchips . | . . . Time . | . . . Total Robot Build Rating . | . . . Part Schematics Acquired . | . . . Parts Built . | . . . Authchips . | . . . Time . | . . . Total Part Build Rating . | . . . Parts Repaired . | . . . Time . | . . . Parts Recycled . | . . . Recycled Matter . | . . . Retrieved Matter . | . . . Retrieved Components . | . . . Parts Scanalyzed . | . . . Part Schematics Acquired . | . . . Parts Damaged . | . . . Bothacking | -11 -10 -10 ------------ Run | Scr Mat Min Used RIF Installer . | . . . Robots Hacked . | . . . Non-combat . | . . . Combat . | . . . Robot Hacks Applied . | . . . Relay Couplers Released . | . . . Fabnet Peak Effective % . | . . . Robots Rewired . | . . . Allies Hacked . | . . . Hacks Repelled . | . . . Allies | -11 -10 -10 -------- Run | Scr Mat Min Total Allies 2 | . . 2 Largest Group 2 | . . 2 Highest-Rated Group 46 | . . 46 Highest-Rated Ally 31 | . . 31 Total Orders . | . . . Ally Attacks 5 | . . 5 Total Damage 104 | . . 104 Kills . | . . . Allies Corrupted . | . . . Allies Melted . | . . . Intel | -11 -10 -10 ------- Run | Scr Mat Min Robot Analysis Total . | . . . Derelict Logs Recovered . | . . . Drone Launches . | . . . Drone Recoveries . | . . . Exploration | -11 -10 -10 ------------- Run | Scr Mat Min Turns Passed 846 | 43 491 312 Spaces Moved 393 | 34 246 113 Core 1 | 1 . . Treads 254 | . 141 113 Legs . | . . . Wheels 138 | 33 105 . Hover . | . . . Flight . | . . . Fastest Speed 50 | 50 90 160 Average Speed 135 | 86 130 160 Slowest Speed 240 | 95 160 240 Overloaded Moves . | . . . Propulsion Burnouts . | . . . Robots Hopped . | . . . Cave-ins Triggered . | . . . Exploration Rate (%) 23 | 3 36 30 Regions Visited 2 Branch Regions 1 Pre-discovered Areas . | . . . Known Exits Taken 1 | . 1 . Unknown Exits Taken 1 | 1 . . Scrap Searched . | . . . Spaces Dug . | . . . Terrain Destroyed 3 | . 3 . Melee . | . . . Projectile . | . . . AOE 3 | . 3 . Terrain Rammed . | . . . Walls Destroyed . | . . . Machines Disabled . | . . . Actions | -11 -10 -10 --------- Run | Scr Mat Min Total 551 | 43 330 178 Wait 25 | . 10 15 Move 391 | 33 245 113 Hop . | . . . Pick Up 16 | 3 12 1 Fast Attach 9 | 6 2 1 Attach 6 | . 4 2 Detach 1 | . . 1 Swap 7 | 1 4 2 Drop 4 | . 3 1 Fire 91 | . 49 42 Melee . | . . . Ram . | . . . Kick . | . . . Crush 1 | . 1 . Escape Stasis . | . . . Rewire . | . . . Trap . | . . . Miscellaneous . | . . . Route ------- -11/Scrapyard -10/Materials (discovered 2 exits: *Min x2) -10/Mines History --------- Turn | Location | Event 22 | -11/Scrapyard | Discovered new exit (range 15) 44 | -11/Scrapyard | Entered Materials 245 | -10/Materials | Lost 5 parts (1p2n2w) 348 | -10/Materials | Discovered new exit (range 10) 349 | -10/Materials | Build established: Mutant 429 | -10/Materials | Identified exit to Mines 466 | -10/Materials | Core integrity fell below 50% 535 | -10/Materials | Entered Mines 717 | -10/Mines | Core integrity fell below 20% 847 | -10/Mines | Destroyed by G-47 Trooper with Particle Gun Last Messages --------------- 00773_ G-47 Trooper suffers critical hit (Burn). 00775_ G-47 Trooper overheating. 00779_ T-07 Excavator destroyed. 00782_ Destroyed Aluminum Leg. 00782_ Melted Particle Gun. 00782_ G-47 Trooper overheating. 00786_ U-05 Engineer suffers critical hit (Burn). 00786_ Welding Torch melted. 00786_ Wheel melted. 00786_ U-05 Engineer destroyed. 00786_ Lgt. Nuclear Core melted. 00786_ G-47 Trooper destroyed. 00790_ Particle Gun broken. 00790_ Overheating: Short circuit. 00790_ Acquired 19 matter. 00792_ Acquired 40 matter. 00793_ Acquired 19 matter. 00798_ Acquired 24 matter. 00832_ Lgt. Treads destroyed. 00834_ G-34 Mercenary destroyed. Map ----- +----------------------------------------------------+ | ?????????????????????????????????????????????????? | | ?????????????????????????????????????????????????? | | ?????????????????????????????????????????????????? | | ?????????????????????????????????????????????????? | | ?????????????????????????????????????????????????? | | ????????????????????????????????????????????? ???? | | ??????????????????????????????????????????? ???? | | ?????????????????????????????????????????? #??? | | ??????????????????????????????????????????? ##? | | ??????????????????????????????????????????? #? | | ??????????????????????????????????????????? ## | | ???????????????????????????????????????????? # | | ???????????????????????????????????????????? | | ???????????????????????????????????????????? | | ????????????????????????????????????????????? | | ??????????????????????????#####?????????????? ? | | ?????????????????????????## ##?????????????# #? | | ?????????????????????????# #?????????????# #? | | ????????????????????????## #???????????### #? | | ???????????????????????## ##?????????## ! #? | | ??????????????????????## ####??????# * #? | | ?????????????????????## ##?????#! = #? | | ????????????????????## ##???## = #? | | ???????????????###### % ##### %[ ## | | ???????????????# ## % | | ???????????????# ##### @##### | | ?????????????????????## g##???# | | ??????????????????????# #????# # % ### | | ??????????????????????# %#????## ##%[###?## # | | ?????????????????????? ! ?????#######[ #????### # | | ????????????????????? """ ???????????# ##?????? # | | ???????????????????? """ ??????????##% ##????? # | | ??????????????????? """ ????????### #????? # | | ??????????????????# ??????## ##????? # | | ??????????????????# """ ?????## ## #?????? # | | ??????###?????????# ???? ????## #?# #?????? # | | ?????## #????????# ????? ???## #??# #???????? | | ?????# #???????#?????? #??# #??# #???????? | | ?????# ##????????????? #??# #??# #???????? | | ??????# ##???????????? #??# #??# #???????? | | ???????# #####????????##??# #??# #???????? | | ???????## ###???####???## #### #???????? | | ????????## ##### ###??### #???????? | | ?????????# ##???## #####???????? | | ????????## ##???# #???????????? | | ####### ##??# #???????????? | | #### #???????????? | | ######## #???????????? | | ########### ##??????## #???????????? | | ????????????#######????????###########???????????? | +----------------------------------------------------+ Best States ------------- Heat Dissipation 39 Energy Generation 18 Energy Capacity 250 Matter Stores 300 Matter Capacity 300 Sight Range 16 Terrain Scan Density 10 Evasion (%) 44 Recoil Reduction 2 Item Schematics ----------------- None Robot Schematics ------------------ None Fabricated ------------ Nothing Alien Tech Used ----------------- None Achievements -------------- None Challenges ------------ None Game ------ Seed LinearArmoredVibroblade Manual? 0 Play Time 00:13:06 Cumulative 146.6 hours Start 2022.05.09 @ 10:15:58 End 2022.05.09 @ 10:25:37 Sessions 1 Manual Loads 0 Difficulty Rogue Special Mode None Game No. 54 Rogue 47 Adventurer 0 Explorer 7 Win Type - Total 1 Types 0/0/1/0/0/0/0/0/0 Lore% 56 Gallery% 53 Achievement% 45 Wizard Run 0 Options --------- ASCII 0 Keyboard 0 Movement Mouse Keybinds 0 Fullscreen 1 Font 16/Cog Map View 76x50 Tactical HUD 1 Map Filters NONE Filters NONE Steam 1 RUN: 2a6bc367-5f16-4e8f-a9b1-ddc3a53115db